[Event "Late-Titled-Tuesday-Blitz-September-05-2023"]
[Site "Chess.com"]
[Date "2023.09.05"]
[Round "5"]
[White "Rud_Makarian"]
[Black "Hamisandwich"]
[Result "1-0"]
[WhiteElo "2951"]
[BlackElo "2663"]
[TimeControl "180+1"]
[EndTime "14:57:03 PDT"]
[Termination "Rud_Makarian won by resignation"]

1. d4 {[%clk 0:03:00.9]} 1... d5 {[%clk 0:02:58.9]} 2. c4 {[%clk 0:02:58.6]}
2... e6 {[%clk 0:02:58.8]} 3. Nf3 {[%clk 0:02:58.5]} 3... Nf6 {[%clk 0:02:57]}
4. Nc3 {[%clk 0:02:59.1]} 4... Be7 {[%clk 0:02:48.4]} 5. Bf4 {[%clk 0:02:55.7]}
5... O-O {[%clk 0:02:44.8]} 6. e3 {[%clk 0:02:56.6]} 6... c5 {[%clk 0:02:41.2]}
7. dxc5 {[%clk 0:02:56.6]} 7... Bxc5 {[%clk 0:02:37]} 8. Qc2 {[%clk 0:02:57]}
8... Nc6 {[%clk 0:02:33]} 9. a3 {[%clk 0:02:57.6]} 9... Qa5 {[%clk 0:02:26.2]}
10. Rd1 {[%clk 0:02:58]} 10... Ne4 {[%clk 0:02:02.5]} 11. cxd5 {[%clk
0:02:54.5]} 11... Nxc3 {[%clk 0:01:50.5]} 12. bxc3 {[%clk 0:02:53.8]} 12... exd5
{[%clk 0:01:48]} 13. Bd3 {[%clk 0:02:54.4]} 13... h6 {[%clk 0:01:39.3]} 14. O-O
{[%clk 0:02:54.9]} 14... Be6 {[%clk 0:01:35.3]} 15. Nd4 {[%clk 0:02:50.3]} 15...
Rac8 {[%clk 0:01:30.6]} 16. Nxe6 {[%clk 0:02:43.9]} 16... fxe6 {[%clk
0:01:30.6]} 17. a4 {[%clk 0:02:44.7]} 17... Be7 {[%clk 0:01:12.4]} 18. Qb3
{[%clk 0:02:35.2]} 18... Qb6 {[%clk 0:01:07.1]} 19. Qxb6 {[%clk 0:02:31.1]}
19... axb6 {[%clk 0:01:08]} 20. c4 {[%clk 0:02:31.8]} 20... e5 {[%clk
0:00:55.9]} 21. Bg3 {[%clk 0:02:23.3]} 21... d4 {[%clk 0:00:56.3]} 22. exd4
{[%clk 0:02:18.6]} 22... exd4 {[%clk 0:00:54.8]} 23. Be4 {[%clk 0:02:17.9]}
23... Bc5 {[%clk 0:00:54.6]} 24. Rfe1 {[%clk 0:02:15.3]} 24... Kh8 {[%clk
0:00:49.6]} 25. h4 {[%clk 0:02:14.3]} 25... Ra8 {[%clk 0:00:47.3]} 26. Ra1
{[%clk 0:02:11.3]} 26... Ra7 {[%clk 0:00:33.8]} 27. Kh2 {[%clk 0:01:58.5]} 27...
Rfa8 {[%clk 0:00:31.8]} 28. Bd5 {[%clk 0:01:59]} 28... Nb4 {[%clk 0:00:28.9]}
29. Re6 {[%clk 0:01:49.6]} 29... Nxd5 {[%clk 0:00:24.5]} 30. cxd5 {[%clk
0:01:50.5]} 30... Rd8 {[%clk 0:00:24.8]} 31. d6 {[%clk 0:01:46.7]} 31... Raa8
{[%clk 0:00:23]} 32. Be5 {[%clk 0:01:44.9]} 32... Rd7 {[%clk 0:00:22.3]} 33.
Rxh6+ {[%clk 0:01:43.6]} 33... Kg8 {[%clk 0:00:22.3]} 34. Rg6 {[%clk 0:01:43.1]}
34... Rad8 {[%clk 0:00:13]} 35. Rd1 {[%clk 0:01:38.3]} 35... Bxd6 {[%clk
0:00:12.2]} 36. Rxd6 {[%clk 0:01:36.6]} 36... Rxd6 {[%clk 0:00:13.1]} 37. Bxd6
{[%clk 0:01:37.4]} 37... Rxd6 {[%clk 0:00:13.9]} 38. Kg3 {[%clk 0:01:37.9]}
38... d3 {[%clk 0:00:13.7]} 39. Kf3 {[%clk 0:01:36.8]} 39... Rd4 {[%clk
0:00:13.9]} 40. g3 {[%clk 0:01:37.2]} 40... d2 {[%clk 0:00:11]} 41. Ke3 {[%clk
0:01:37.6]} 41... Rxa4 {[%clk 0:00:10.4]} 42. Rxd2 {[%clk 0:01:38.3]} 42... Ra3+
{[%clk 0:00:10.1]} 43. Rd3 {[%clk 0:01:38.3]} 43... Ra5 {[%clk 0:00:06.3]} 44.
Rd8+ {[%clk 0:01:37.7]} 44... Kh7 {[%clk 0:00:05.9]} 45. Rd7 {[%clk 0:01:38.1]}
45... Re5+ {[%clk 0:00:06.2]} 46. Kf4 {[%clk 0:01:37]} 46... Re6 {[%clk
0:00:05.7]} 47. Rxb7 {[%clk 0:01:36.5]} 47... Rf6+ {[%clk 0:00:06.6]} 48. Ke3
{[%clk 0:01:37]} 48... Rc6 {[%clk 0:00:07.2]} 49. g4 {[%clk 0:01:36.3]} 49...
Kg6 {[%clk 0:00:07.1]} 50. f3 {[%clk 0:01:36.1]} 50... Kf6 {[%clk 0:00:07.6]}
51. Kf4 {[%clk 0:01:36.5]} 51... g6 {[%clk 0:00:08]} 52. Kg3 {[%clk 0:01:32.7]}
52... Ke5 {[%clk 0:00:07.6]} 53. g5 {[%clk 0:01:28.3]} 53... Rd6 {[%clk
0:00:05.1]} 54. f4+ {[%clk 0:01:24]} 54... Kd5 {[%clk 0:00:05.3]} 55. Kg4 {[%clk
0:01:23]} 55... Rc6 {[%clk 0:00:05.8]} 56. Rd7+ {[%clk 0:01:18.9]} 56... Ke6
{[%clk 0:00:06]} 57. Rg7 {[%clk 0:01:19.6]} 57... Kd5 {[%clk 0:00:06.4]} 58. h5
{[%clk 0:01:14.3]} 58... gxh5+ {[%clk 0:00:07.3]} 59. Kxh5 {[%clk 0:01:15.2]}
59... Ke4 {[%clk 0:00:07.6]} 60. Kg4 {[%clk 0:01:15.8]} 60... b5 {[%clk
0:00:06.3]} 61. Re7+ {[%clk 0:01:16]} 61... Kd5 {[%clk 0:00:06.9]} 62. f5 {[%clk
0:01:16.5]} 62... b4 {[%clk 0:00:07]} 63. Rb7 {[%clk 0:01:16.4]} 63... Rc4+
{[%clk 0:00:06.6]} 64. Kh5 {[%clk 0:01:17]} 64... Kc5 {[%clk 0:00:06.2]} 65. f6
{[%clk 0:01:16.3]} 65... Rf4 {[%clk 0:00:06.9]} 66. Kg6 {[%clk 0:01:16.2]} 66...
Kc6 {[%clk 0:00:06]} 67. Rb8 {[%clk 0:01:16.1]} 67... Kc7 {[%clk 0:00:06.6]} 68.
Rxb4 {[%clk 0:01:04]} 68... Rxb4 {[%clk 0:00:06]} 69. f7 {[%clk 0:01:04.6]}
69... Rf4 {[%clk 0:00:06.3]} 70. Kg7 {[%clk 0:01:04.9]} 70... Kd6 {[%clk
0:00:06.9]} 71. f8=Q+ {[%clk 0:01:04.6]} 71... Rxf8 {[%clk 0:00:06.4]} 72. Kxf8
{[%clk 0:01:05.5]} 1-0

[Event "Late-Titled-Tuesday-Blitz-September-05-2023"]
[Site "Chess.com"]
[Date "2023.09.05"]
[Round "5"]
[White "GrigorGrigorov"]
[Black "The_Machine04"]
[Result "1-0"]
[WhiteElo "2872"]
[BlackElo "2607"]
[TimeControl "180+1"]
[EndTime "14:57:04 PDT"]
[Termination "GrigorGrigorov won on time"]

1. d4 {[%clk 0:03:00.9]} 1... d6 {[%clk 0:02:47.8]} 2. Nf3 {[%clk 0:03:00.8]}
2... Nf6 {[%clk 0:02:44.8]} 3. Bg5 {[%clk 0:03:00.2]} 3... Nbd7 {[%clk
0:02:44.3]} 4. Nbd2 {[%clk 0:02:59.7]} 4... e5 {[%clk 0:02:19.3]} 5. c3 {[%clk
0:02:56.9]} 5... Be7 {[%clk 0:02:18.4]} 6. e4 {[%clk 0:02:55.3]} 6... h6 {[%clk
0:02:18.3]} 7. Bh4 {[%clk 0:02:54.7]} 7... c6 {[%clk 0:02:16.8]} 8. Bd3 {[%clk
0:02:53.6]} 8... Qc7 {[%clk 0:02:16.8]} 9. O-O {[%clk 0:02:53]} 9... Nf8 {[%clk
0:02:17.3]} 10. Re1 {[%clk 0:02:44.5]} 10... Ng6 {[%clk 0:02:17.5]} 11. Bg3
{[%clk 0:02:35.4]} 11... O-O {[%clk 0:02:17.8]} 12. Nc4 {[%clk 0:02:28.1]} 12...
Nd7 {[%clk 0:01:58.8]} 13. a4 {[%clk 0:02:24.6]} 13... Re8 {[%clk 0:01:47.9]}
14. Qc2 {[%clk 0:02:16.3]} 14... Bf8 {[%clk 0:01:45.1]} 15. Rad1 {[%clk
0:02:14.8]} 15... Nf6 {[%clk 0:01:43.1]} 16. Ne3 {[%clk 0:02:01.9]} 16... Nh5
{[%clk 0:01:34.1]} 17. dxe5 {[%clk 0:02:00]} 17... dxe5 {[%clk 0:01:32.9]} 18.
Bc4 {[%clk 0:01:58.6]} 18... Nxg3 {[%clk 0:01:28.4]} 19. hxg3 {[%clk 0:01:59.5]}
19... a6 {[%clk 0:01:20.2]} 20. b4 {[%clk 0:01:44.6]} 20... b5 {[%clk
0:01:17.5]} 21. Bb3 {[%clk 0:01:42]} 21... Be6 {[%clk 0:00:56.9]} 22. Nf5 {[%clk
0:01:33.9]} 22... Bxb3 {[%clk 0:00:53.3]} 23. Qxb3 {[%clk 0:01:33.5]} 23... Rad8
{[%clk 0:00:53.9]} 24. Nh2 {[%clk 0:01:13.8]} 24... Ne7 {[%clk 0:00:52.4]} 25.
Ng4 {[%clk 0:01:10.8]} 25... h5 {[%clk 0:00:35.5]} 26. Nge3 {[%clk 0:00:36.3]}
26... g6 {[%clk 0:00:35.4]} 27. Nh4 {[%clk 0:00:34.3]} 27... Bh6 {[%clk
0:00:31.6]} 28. Nf1 {[%clk 0:00:31.8]} 28... Rxd1 {[%clk 0:00:28.8]} 29. Rxd1
{[%clk 0:00:31.7]} 29... Rd8 {[%clk 0:00:29.5]} 30. Nf3 {[%clk 0:00:30.7]} 30...
Rxd1 {[%clk 0:00:24.2]} 31. Qxd1 {[%clk 0:00:31.6]} 31... Nc8 {[%clk 0:00:23.1]}
32. a5 {[%clk 0:00:29.1]} 32... Bg7 {[%clk 0:00:17.2]} 33. Qd3 {[%clk
0:00:26.3]} 33... Qd6 {[%clk 0:00:17.1]} 34. Qc2 {[%clk 0:00:25.5]} 34... c5
{[%clk 0:00:15.2]} 35. N1d2 {[%clk 0:00:24.5]} 35... Ne7 {[%clk 0:00:13.4]} 36.
bxc5 {[%clk 0:00:19.2]} 36... Qxc5 {[%clk 0:00:14.3]} 37. Nb3 {[%clk 0:00:19.6]}
37... Qa3 {[%clk 0:00:11.8]} 38. Nfd2 {[%clk 0:00:18.9]} 38... Nc6 {[%clk
0:00:10.6]} 39. Qd3 {[%clk 0:00:17.7]} 39... Bf8 {[%clk 0:00:07.2]} 40. Qd5
{[%clk 0:00:13.4]} 40... Nxa5 {[%clk 0:00:06.4]} 41. Nxa5 {[%clk 0:00:12.8]}
41... Qxa5 {[%clk 0:00:06.1]} 42. Qxe5 {[%clk 0:00:12.7]} 42... Qa1+ {[%clk
0:00:06]} 43. Kh2 {[%clk 0:00:12.4]} 43... b4 {[%clk 0:00:05.6]} 44. Nf3 {[%clk
0:00:09.8]} 44... Qxc3 {[%clk 0:00:04.4]} 45. Qd5 {[%clk 0:00:09.7]} 45... b3
{[%clk 0:00:01.9]} 46. Ne5 {[%clk 0:00:09.9]} 46... Qc7 {[%clk 0:00:01.1]} 47.
Nxg6 {[%clk 0:00:10]} 1-0

[Event "Late-Titled-Tuesday-Blitz-September-05-2023"]
[Site "Chess.com"]
[Date "2023.09.05"]
[Round "5"]
[White "Perecke"]
[Black "Rodalquilar"]
[Result "1-0"]
[WhiteElo "2494"]
[BlackElo "2761"]
[TimeControl "180+1"]
[EndTime "14:57:04 PDT"]
[Termination "Perecke won on time"]

1. e4 {[%clk 0:02:54.4]} 1... d5 {[%clk 0:02:59.7]} 2. exd5 {[%clk 0:02:54.3]}
2... Qxd5 {[%clk 0:03:00.6]} 3. Nc3 {[%clk 0:02:54.4]} 3... Qa5 {[%clk
0:03:00.9]} 4. Bc4 {[%clk 0:02:54.1]} 4... Nf6 {[%clk 0:03:00.5]} 5. d3 {[%clk
0:02:54.5]} 5... Bg4 {[%clk 0:02:59.7]} 6. Ne2 {[%clk 0:02:50.3]} 6... Nc6
{[%clk 0:02:49.5]} 7. Bd2 {[%clk 0:02:44.7]} 7... Qh5 {[%clk 0:02:19.9]} 8. f3
{[%clk 0:02:26.2]} 8... Bd7 {[%clk 0:02:15.6]} 9. Nf4 {[%clk 0:02:23.4]} 9...
Qe5+ {[%clk 0:02:11.5]} 10. Qe2 {[%clk 0:02:22.8]} 10... Qxe2+ {[%clk
0:02:10.6]} 11. Ncxe2 {[%clk 0:02:23.7]} 11... e6 {[%clk 0:02:08.2]} 12. Be3
{[%clk 0:02:19.7]} 12... O-O-O {[%clk 0:02:05.6]} 13. O-O-O {[%clk 0:02:19]}
13... Be8 {[%clk 0:02:00.7]} 14. d4 {[%clk 0:02:17.5]} 14... Nd5 {[%clk
0:02:00.5]} 15. Nxd5 {[%clk 0:02:15.4]} 15... exd5 {[%clk 0:02:00.3]} 16. Bb3
{[%clk 0:02:16.3]} 16... Na5 {[%clk 0:01:52.5]} 17. Nf4 {[%clk 0:02:07.5]} 17...
Nxb3+ {[%clk 0:01:47.4]} 18. axb3 {[%clk 0:02:08.4]} 18... h5 {[%clk 0:01:32.1]}
19. h4 {[%clk 0:02:04.1]} 19... g6 {[%clk 0:01:30.4]} 20. Nd3 {[%clk 0:02:02.2]}
20... Be7 {[%clk 0:01:27.3]} 21. Bg5 {[%clk 0:02:01.2]} 21... f6 {[%clk
0:01:26]} 22. Rde1 {[%clk 0:01:58.5]} 22... Rh7 {[%clk 0:01:23.4]} 23. Rxe7
{[%clk 0:01:56.8]} 23... Rxe7 {[%clk 0:01:13.2]} 24. Bxf6 {[%clk 0:01:57.1]}
24... Re6 {[%clk 0:01:11.5]} 25. Bxd8 {[%clk 0:01:55.2]} 25... Kxd8 {[%clk
0:01:12.4]} 26. Nf4 {[%clk 0:01:53.6]} 26... Ra6 {[%clk 0:01:10.1]} 27. Kd2
{[%clk 0:01:53]} 27... Bf7 {[%clk 0:01:10.4]} 28. Re1 {[%clk 0:01:50.3]} 28...
Ra2 {[%clk 0:01:05.3]} 29. Kc3 {[%clk 0:01:45.5]} 29... Ra6 {[%clk 0:01:05.4]}
30. Re5 {[%clk 0:01:44.1]} 30... Rd6 {[%clk 0:01:04.6]} 31. Kd2 {[%clk
0:01:41.8]} 31... Kd7 {[%clk 0:01:00.8]} 32. g4 {[%clk 0:01:40.9]} 32... hxg4
{[%clk 0:00:48.9]} 33. fxg4 {[%clk 0:01:41.8]} 33... Rf6 {[%clk 0:00:49.2]} 34.
Ke3 {[%clk 0:01:41.6]} 34... Rc6 {[%clk 0:00:48.9]} 35. c3 {[%clk 0:01:41.5]}
35... Rd6 {[%clk 0:00:48.4]} 36. b4 {[%clk 0:01:41.2]} 36... a6 {[%clk
0:00:19.9]} 37. h5 {[%clk 0:01:39]} 37... gxh5 {[%clk 0:00:19.7]} 38. gxh5
{[%clk 0:01:39.9]} 38... b6 {[%clk 0:00:14.5]} 39. Kf3 {[%clk 0:01:35.5]} 39...
a5 {[%clk 0:00:13]} 40. b5 {[%clk 0:01:29.1]} 40... c6 {[%clk 0:00:13.3]} 41.
bxc6+ {[%clk 0:01:27.9]} 41... Kxc6 {[%clk 0:00:13.7]} 42. Kg4 {[%clk
0:01:24.5]} 42... a4 {[%clk 0:00:08.7]} 43. Kg5 {[%clk 0:01:20]} 43... Kb5
{[%clk 0:00:05.9]} 44. h6 {[%clk 0:01:19.3]} 44... Bg8 {[%clk 0:00:06.1]} 45.
Nh5 {[%clk 0:01:06.3]} 45... Kc4 {[%clk 0:00:05.2]} 46. Nf6 {[%clk 0:01:06.4]}
46... Rd8 {[%clk 0:00:05.3]} 47. Kg6 {[%clk 0:00:32.5]} 47... Kb3 {[%clk
0:00:05]} 48. Re2 {[%clk 0:00:32.8]} 48... b5 {[%clk 0:00:05.4]} 49. Kg7 {[%clk
0:00:31.9]} 49... a3 {[%clk 0:00:01.5]} 50. bxa3 {[%clk 0:00:31.2]} 50... Kxc3
{[%clk 0:00:01.6]} 51. Nxg8 {[%clk 0:00:30.9]} 51... Kxd4 {[%clk 0:00:02.2]} 52.
h7 {[%clk 0:00:30.8]} 52... Rd7+ {[%clk 0:00:02.8]} 53. Ne7 {[%clk 0:00:30.7]}
53... Kd3 {[%clk 0:00:02.5]} 54. Re6 {[%clk 0:00:31.3]} 54... Rd8 {[%clk
0:00:01.4]} 55. Ng8 {[%clk 0:00:30.5]} 55... Rd7+ {[%clk 0:00:01.9]} 56. Re7
{[%clk 0:00:31.1]} 1-0

[Event "Late-Titled-Tuesday-Blitz-September-05-2023"]
[Site "Chess.com"]
[Date "2023.09.05"]
[Round "5"]
[White "EsmeraldasAnderson03"]
[Black "szachuspl"]
[Result "0-1"]
[WhiteElo "2407"]
[BlackElo "2546"]
[TimeControl "180+1"]
[EndTime "14:57:11 PDT"]
[Termination "szachuspl won on time"]

1. d4 {[%clk 0:03:00.9]} 1... Nf6 {[%clk 0:02:58.7]} 2. Nf3 {[%clk 0:03:01.1]}
2... g6 {[%clk 0:02:56.4]} 3. Bf4 {[%clk 0:03:01.3]} 3... Bg7 {[%clk 0:02:56.3]}
4. h3 {[%clk 0:03:01.8]} 4... O-O {[%clk 0:02:56.4]} 5. e3 {[%clk 0:03:02.3]}
5... d6 {[%clk 0:02:56.9]} 6. Bh2 {[%clk 0:03:02.8]} 6... Nbd7 {[%clk
0:02:55.7]} 7. Be2 {[%clk 0:03:03.2]} 7... b6 {[%clk 0:02:56]} 8. O-O {[%clk
0:03:03.4]} 8... Bb7 {[%clk 0:02:56.6]} 9. c4 {[%clk 0:03:00.4]} 9... c5 {[%clk
0:02:56]} 10. Nc3 {[%clk 0:03:00.6]} 10... a6 {[%clk 0:02:54.3]} 11. Re1 {[%clk
0:02:46.9]} 11... h6 {[%clk 0:02:50.5]} 12. Bf1 {[%clk 0:02:46]} 12... Ne4
{[%clk 0:02:47.3]} 13. Nd2 {[%clk 0:01:57.8]} 13... Nxf2 {[%clk 0:02:25.2]} 14.
Kxf2 {[%clk 0:01:52.6]} 14... cxd4 {[%clk 0:02:25.6]} 15. exd4 {[%clk 0:01:19]}
15... Bxd4+ {[%clk 0:02:21.5]} 16. Ke2 {[%clk 0:01:19.5]} 16... Rc8 {[%clk
0:02:06.9]} 17. Nf3 {[%clk 0:01:18.9]} 17... Bg7 {[%clk 0:02:06.4]} 18. Kf2
{[%clk 0:01:18.1]} 18... Qc7 {[%clk 0:02:00.3]} 19. Kg1 {[%clk 0:01:15.4]} 19...
Nf6 {[%clk 0:01:54.3]} 20. Kh1 {[%clk 0:01:13.1]} 20... Rfe8 {[%clk 0:01:48.4]}
21. Bg1 {[%clk 0:01:11.4]} 21... Bc6 {[%clk 0:01:41.5]} 22. Qb3 {[%clk
0:00:55.4]} 22... Rb8 {[%clk 0:01:38.3]} 23. Nd5 {[%clk 0:00:51.8]} 23... Qb7
{[%clk 0:01:20.6]} 24. Nxb6 {[%clk 0:00:43.5]} 24... Nh5 {[%clk 0:01:20.1]} 25.
Bf2 {[%clk 0:00:35.1]} 25... Nf4 {[%clk 0:01:18.4]} 26. Kg1 {[%clk 0:00:10.8]}
26... Nxh3+ {[%clk 0:01:12.3]} 27. gxh3 {[%clk 0:00:11.7]} 27... Bxf3 {[%clk
0:01:12.2]} 28. a4 {[%clk 0:00:08.5]} 28... a5 {[%clk 0:01:11.6]} 29. Qb5 {[%clk
0:00:06.6]} 29... Bc6 {[%clk 0:01:00.5]} 30. Qxa5 {[%clk 0:00:05.6]} 30... Bxb2
{[%clk 0:01:00.5]} 31. Rab1 {[%clk 0:00:06.2]} 31... Bf6 {[%clk 0:00:59.4]} 32.
Qd2 {[%clk 0:00:06.4]} 32... Bg5 {[%clk 0:00:54.4]} 33. Be3 {[%clk 0:00:06.5]}
33... Bxe3+ {[%clk 0:00:53.8]} 34. Qxe3 {[%clk 0:00:07.4]} 34... Qa7 {[%clk
0:00:49.7]} 35. Qxh6 {[%clk 0:00:03.5]} 35... Rxb6 {[%clk 0:00:42.5]} 36. Qe3
{[%clk 0:00:04.1]} 36... Ra6 {[%clk 0:00:40.1]} 37. c5 {[%clk 0:00:02.6]} 37...
Qxc5 {[%clk 0:00:39]} 38. Bxa6 {[%clk 0:00:02]} 38... Qh5 {[%clk 0:00:32.8]} 39.
Bf1 {[%clk 0:00:01.5]} 39... Bxa4 {[%clk 0:00:30.8]} 40. Bg2 {[%clk 0:00:01.7]}
40... Bd7 {[%clk 0:00:30.9]} 41. Qf2 {[%clk 0:00:02.3]} 41... Be6 {[%clk
0:00:30.6]} 42. Re3 {[%clk 0:00:02.8]} 42... Bf5 {[%clk 0:00:29.1]} 43. Rbe1
{[%clk 0:00:03]} 43... e6 {[%clk 0:00:28.4]} 44. Rg3 {[%clk 0:00:03.7]} 44...
Rd8 {[%clk 0:00:26.6]} 45. Qf4 {[%clk 0:00:03.8]} 45... d5 {[%clk 0:00:26.6]}
46. Qg5 {[%clk 0:00:04.4]} 46... Qxg5 {[%clk 0:00:25.7]} 47. Rxg5 {[%clk
0:00:05.3]} 47... Kg7 {[%clk 0:00:26.3]} 48. h4 {[%clk 0:00:05.7]} 48... Kf6
{[%clk 0:00:26.8]} 49. Rg3 {[%clk 0:00:04.5]} 49... d4 {[%clk 0:00:27.1]} 50.
Bh3 {[%clk 0:00:04.7]} 50... e5 {[%clk 0:00:27]} 51. Rf3 {[%clk 0:00:04.2]}
51... Ke6 {[%clk 0:00:24]} 52. Bg2 {[%clk 0:00:01.6]} 52... Bg4 {[%clk
0:00:21.1]} 53. Ra3 {[%clk 0:00:01.8]} 53... d3 {[%clk 0:00:19.6]} 54. Ra5
{[%clk 0:00:02.7]} 54... f6 {[%clk 0:00:19.3]} 0-1

[Event "Late-Titled-Tuesday-Blitz-September-05-2023"]
[Site "Chess.com"]
[Date "2023.09.05"]
[Round "5"]
[White "AleksanderHnydiuk"]
[Black "Taran2004"]
[Result "0-1"]
[WhiteElo "2523"]
[BlackElo "2407"]
[TimeControl "180+1"]
[EndTime "14:57:21 PDT"]
[Termination "Taran2004 won on time"]

1. d4 {[%clk 0:03:00.9]} 1... Nf6 {[%clk 0:03:00.4]} 2. c4 {[%clk 0:03:00.7]}
2... c5 {[%clk 0:02:57.1]} 3. d5 {[%clk 0:03:00.5]} 3... b5 {[%clk 0:02:55.7]}
4. cxb5 {[%clk 0:02:59.6]} 4... a6 {[%clk 0:02:56.1]} 5. bxa6 {[%clk 0:02:59.2]}
5... d6 {[%clk 0:02:56.4]} 6. Nc3 {[%clk 0:02:59.1]} 6... g6 {[%clk 0:02:55.8]}
7. a7 {[%clk 0:02:53.2]} 7... Rxa7 {[%clk 0:02:55.5]} 8. e4 {[%clk 0:02:52]}
8... Bg7 {[%clk 0:02:54.9]} 9. Nf3 {[%clk 0:02:50.5]} 9... O-O {[%clk 0:02:55]}
10. Be2 {[%clk 0:02:49.1]} 10... Qa5 {[%clk 0:02:54.8]} 11. Bd2 {[%clk
0:02:46.6]} 11... Qb6 {[%clk 0:02:47.9]} 12. O-O {[%clk 0:02:42.7]} 12... Ba6
{[%clk 0:02:47.7]} 13. Bxa6 {[%clk 0:02:30.3]} 13... Nxa6 {[%clk 0:02:48.4]} 14.
a4 {[%clk 0:02:26]} 14... Rb8 {[%clk 0:02:43.5]} 15. Qe2 {[%clk 0:02:20.6]}
15... Nb4 {[%clk 0:02:41.5]} 16. Nb5 {[%clk 0:02:18.3]} 16... Raa8 {[%clk
0:02:33.5]} 17. b3 {[%clk 0:02:07.8]} 17... Na6 {[%clk 0:02:31.5]} 18. Rac1
{[%clk 0:02:02.9]} 18... Ne8 {[%clk 0:02:24.7]} 19. Bc3 {[%clk 0:02:01.5]} 19...
Nec7 {[%clk 0:02:22.5]} 20. Bxg7 {[%clk 0:01:57.9]} 20... Kxg7 {[%clk
0:02:22.5]} 21. Nxc7 {[%clk 0:01:56.8]} 21... Nxc7 {[%clk 0:02:23.3]} 22. Nd2
{[%clk 0:01:55.7]} 22... Qa6 {[%clk 0:02:18.9]} 23. Qe3 {[%clk 0:01:53.6]} 23...
Rb4 {[%clk 0:02:10.6]} 24. f4 {[%clk 0:01:50.6]} 24... Rab8 {[%clk 0:02:09.5]}
25. Qc3+ {[%clk 0:01:49.2]} 25... f6 {[%clk 0:02:06.6]} 26. Rce1 {[%clk
0:01:45.3]} 26... Qb6 {[%clk 0:02:05.8]} 27. Kh1 {[%clk 0:01:34.1]} 27... Rd4
{[%clk 0:02:03.3]} 28. h3 {[%clk 0:01:25.8]} 28... Qb4 {[%clk 0:02:02.9]} 29.
Qg3 {[%clk 0:01:21]} 29... Qxd2 {[%clk 0:01:52]} 30. e5 {[%clk 0:01:17.9]} 30...
Nxd5 {[%clk 0:01:44.3]} 31. exf6+ {[%clk 0:01:16]} 31... exf6 {[%clk 0:01:42.3]}
32. Re6 {[%clk 0:01:11.9]} 32... Rxf4 {[%clk 0:01:37.6]} 33. Rfe1 {[%clk
0:01:06.1]} 33... Rbb4 {[%clk 0:01:14.8]} 34. Rxd6 {[%clk 0:01:04.7]} 34... Rbd4
{[%clk 0:01:12.8]} 35. Rd7+ {[%clk 0:00:59.8]} 35... Kf8 {[%clk 0:01:12.4]} 36.
Rd8+ {[%clk 0:00:51]} 36... Kg7 {[%clk 0:01:12.2]} 37. Rd7+ {[%clk 0:00:50.7]}
37... Kh6 {[%clk 0:01:11.6]} 38. a5 {[%clk 0:00:41.2]} 38... Qxa5 {[%clk
0:00:49.3]} 39. Rxd5 {[%clk 0:00:39]} 39... Qxe1+ {[%clk 0:00:49.2]} 40. Qxe1
{[%clk 0:00:38.1]} 40... Rxd5 {[%clk 0:00:49.1]} 41. Qe3 {[%clk 0:00:27.9]}
41... g5 {[%clk 0:00:49.1]} 42. Qe7 {[%clk 0:00:21.1]} 42... Kg6 {[%clk
0:00:38.9]} 43. Qe8+ {[%clk 0:00:18.8]} 43... Kf5 {[%clk 0:00:39]} 44. Qf7
{[%clk 0:00:09.7]} 44... Rd1+ {[%clk 0:00:36.2]} 45. Kh2 {[%clk 0:00:09.9]}
45... Rff1 {[%clk 0:00:32.6]} 46. Qxh7+ {[%clk 0:00:08.6]} 46... Kf4 {[%clk
0:00:32.1]} 47. Qc7+ {[%clk 0:00:05.2]} 47... Ke3 {[%clk 0:00:30.9]} 48. Qxc5+
{[%clk 0:00:04.8]} 48... Ke4 {[%clk 0:00:31.2]} 49. Qc4+ {[%clk 0:00:04.2]}
49... Ke5 {[%clk 0:00:30.9]} 50. Qc3+ {[%clk 0:00:04]} 50... Kf5 {[%clk
0:00:30.3]} 51. Qc2+ {[%clk 0:00:03.5]} 51... Ke6 {[%clk 0:00:30.8]} 52. Qc4+
{[%clk 0:00:03.5]} 52... Ke7 {[%clk 0:00:31]} 53. Qc7+ {[%clk 0:00:03.5]} 53...
Kf8 {[%clk 0:00:30.5]} 54. Qc8+ {[%clk 0:00:03.4]} 54... Kg7 {[%clk 0:00:30.8]}
55. Qc7+ {[%clk 0:00:03.7]} 55... Kh6 {[%clk 0:00:29.2]} 56. Qc3 {[%clk
0:00:03.5]} 56... Kh5 {[%clk 0:00:23.9]} 57. b4 {[%clk 0:00:02.2]} 57... Rc1
{[%clk 0:00:19.1]} 58. Qd3 {[%clk 0:00:01.7]} 58... f5 {[%clk 0:00:17]} 0-1